[Event "FRA-ch Teams Top 16-B 2022"]
[Site "Chartres"]
[Date "2022.06.15"]
[Round "7.5"]
[White "Papadiamandis, Elliot"]
[Black "Cornette, Matthieu"]
[Result "0-1"]
[ECO "B31"]
[WhiteElo "2373"]
[BlackElo "2570"]
[Annotator "TA"]
[PlyCount "60"]
[EventDate "2022.06.09"]
[EventType "team-tourn"]
[EventCountry "FRA"]
[SourceTitle "playchess.com"]
[Source "ChessBase"]
[SourceQuality "1"]
[TimeControl "40/5400+30:1800+30"]

{[%evp 10,60,16,17,29,23,24,26,25,13,29,-34,-35,-86,-86,-113,-108,-129,-123,-150,-150,-153,-147,-182,-152,-200,-192,-188,-200,-337,-342,-346,-325,-499,-483,-489,-482,-522,-517,-517,-563,-557,-560,-556,-506,-736,-726,-809,-795,-795,-787,-931,-912]} 1. e4 {[%emt 0:00:20]} c5 {[%emt 0:00:10]} 2. Nf3 {[%emt 0:00:20]} Nc6 {[%emt 0:00:05]} 3. Nc3 {[%emt 0:00:33]} g6 {[%emt 0:01:40]} 4. Bb5 {[%emt 0:00:14]} Bg7 {[%emt 0:00:11]} 5. O-O {[%emt 0:00:41]} d6 {[%emt 0:01:27][%cal Bd7d6,Bd6e5,Be5e4][%mdl 32]} 6. e5 {[%emt 0:01:28]} dxe5 {[%emt 0:00:08] B31: Sicilian: 2...Nc6 3 Bb5 g6.} 7. Bxc6+ {[%emt 0:01:12]} bxc6 {[%emt 0:00:02]} 8. Re1 {[%emt 0:00:11]} Qc7 {[%emt 0:00:38] White has an edge.} 9. d3 {[%emt 0:04:00]} c4 {[%emt 0:00:50]} 10. dxc4 {[%emt 0:02:50]} (10. h3 $11) 10... f5 $15 {[%emt 0:00:42]} 11. Be3 {[%emt 0:10:11]} (11. g3 $15) 11... e4 $17 {[%emt 0:10:04]} 12. Bd4 {[%emt 0:18:38] [#]} Nf6 $1 {[%emt 0:07:37]} (12... e5 $6 13. Nxe5 Nf6 14. g3 $11) 13. Be5 {[%emt 0:07:44]} Qa5 {[%emt 0:04:46] [#]} 14. a3 $146 {[%emt 0:14:15]} ({Predecessor:} 14. Bxf6 Bxf6 15. Nd4 Qc5 16. Nb3 Qxc4 17. Qd2 O-O 18. Qe3 a5 19. Rad1 a4 20. Nd4 {0-1 (55) Rog,B (1867)-Fiszer,B (2216) Uniejow 2021}) 14... exf3 {[%emt 0:06:56]} 15. Qxf3 {[%emt 0:05:28]} Qa6 {[%emt 0:25:10]} 16. Bd6 {[%emt 0:05:43]} e6 {[%emt 0:03:19]} 17. Nb5 {[%emt 0:07:46] [#]} (17. b3 $17) 17... cxb5 $1 $19 {[%emt 0:00:25]} 18. Qxa8 {[%emt 0:00:05] And now Rxe6+ would win.} Kf7 {[%emt 0:00:08]} ({Stronger than} 18... Qxd6 19. Qxc8+ Ke7 20. Qb7+ Qd7 21. Qxb5 $15) ({Don't do} 18... bxc4 19. Rxe6+ Kd7 20. Re7+ (20. Rae1 Bb7 $16) 20... Kxd6 21. Rxa7 $16 (21. Rxg7 Qb6 $16)) 19. cxb5 {[%emt 0:03:57]} (19. Bb8 {might work better.}) 19... Qxd6 {[%emt 0:00:49]} 20. Qxa7+ {[%emt 0:00:06]} Qd7 {[%emt 0:00:33]} 21. Qa4 {[%emt 0:01:20]} (21. Qxd7+ $142 Nxd7 22. c3) 21... Bb7 {[%emt 0:02:20] Threatens to win with ...Qd5. Black is clearly winning.} 22. Rad1 {[%emt 0:02:18] Inhibits Qd5.} Qc7 {[%emt 0:00:34] ...Ng4 is the strong threat.} 23. h3 {[%emt 0:12:40] Inhibits Ng4.} Ra8 {[%emt 0:02:18]} 24. Qb3 {[%emt 0:00:00]} Bd5 {[%emt 0:00:49]} 25. Qd3 {[%emt 0:00:00]} Ne4 {[%emt 0:02:45]} 26. c4 {[%emt 0:00:00] [#]} Qc5 {[%emt 0:06:41]} 27. Qe3 {[%emt 0:00:00]} (27. Qc2 Ke7) 27... Qxc4 {[%emt 0:01:52]} 28. Rc1 {[%emt 0:00:00]} Qxb5 {[%emt 0:00:43]} 29. Rc7+ {[%emt 0:00:00]} Kg8 {[%emt 0:00:26]} 30. Qc1 {[%emt 0:00:23]} Qxb2 {[%emt 0:00:57] Black took control after the opening.  Weighted Error Value: White=0.48/Black=0.04 (flawless)} 0-1

[Event "FRA-ch Teams Top 16-B 2022"]
[Site "Chartres"]
[Date "2022.06.15"]
[Round "7.6"]
[White "Movsesian, Sergei"]
[Black "Rakotomaharo, Fy Antenaina"]
[Result "1-0"]
[ECO "C78"]
[WhiteElo "2600"]
[BlackElo "2467"]
[Annotator "TA"]
[PlyCount "89"]
[EventDate "2022.06.09"]
[EventType "team-tourn"]
[EventCountry "FRA"]
[SourceTitle "playchess.com"]
[Source "ChessBase"]
[SourceQuality "1"]
[TimeControl "40/5400+30:1800+30"]

{[%evp 12,89,34,24,38,35,57,18,17,5,31,22,20,8,11,11,10,17,15,9,9,7,15,6,33,42,22,39,37,33,32,24,87,51,63,35,60,65,59,41,45,33,79,8,49,0,26,0,31,27,23,12,27,31,0,0,40,31,57,83,62,67,76,71,104,105,133,119,366,361,358,335,1263,692,1275,1222,1014,685,1376,1376]} 1. e4 {[%emt 0:00:03]} e5 {[%emt 0:00:06]} 2. Nf3 {[%emt 0:00:09]} Nc6 {[%emt 0:00:05]} 3. Bb5 {[%emt 0:00:41][%cal Bf1b5,Bb5a4,Ba4b3][%mdl 32]} a6 {[%emt 0:00:07]} 4. Ba4 {[%emt 0:00:05]} Nf6 {[%emt 0:00:04]} 5. O-O {[%emt 0:00:07]} Bc5 {[%emt 0:00:38]} 6. c3 {[%emt 0:01:19]} Ba7 {[%emt 0:00:15]} 7. d4 {[%emt 0:03:46]} b5 {[%emt 0:00:24] Recently 7...0-0 got a lot of attention. C78: Ruy Lopez: Archangelsk and Möller Defences.} 8. Bb3 {[%emt 0:03:56]} d6 {[%emt 0:00:13]} 9. h3 {[%emt 0:01:48]} O-O {[%emt 0:02:30] The position is equal.} 10. Be3 {[%emt 0:03:57]} Bb7 {[%emt 0:08:55]} (10... Nxe4 $2 11. Bd5 Bb7 12. Bxe4 $18) 11. Nbd2 {[%emt 0:01:46] [#]} h6 $146 {[%emt 0:00:11]} ({Predecessor:} 11... exd4 12. cxd4 Ne7 13. Bg5 Ng6 14. e5 dxe5 {½-½ (14) Asylov,M (2070)-Aradhya,G (2198) Novi Sad 2021}) 12. a4 {[%emt 0:05:25]} exd4 {[%emt 0:05:27]} 13. cxd4 {[%emt 0:01:22][%cal Bc3d4,Bd4d5][%mdl 32] next axb5 is good for White.} Nb4 {[%emt 0:00:19]} 14. Qe2 {[%emt 0:05:24]} Qd7 {[%emt 0:04:31]} 15. d5 {[%emt 0:05:52] And now Bxa7 would win.} Bxe3 {[%emt 0:15:46]} 16. Qxe3 {[%emt 0:02:53]} Rfe8 {[%emt 0:00:10][%cal Rb4d5] [#] Strongly threatening ...Nbxd5!} 17. Qc3 {[%emt 0:08:51]} a5 {[%emt 0:04:23]} (17... c5 $5 {[%cal Rf6e4]}) 18. Rfe1 {[%emt 0:04:26] Threatens to win with axb5.} c6 {[%emt 0:00:45]} 19. dxc6 {[%emt 0:07:49]} Bxc6 {[%emt 0:00:12][%cal Rb5a4]} 20. axb5 {[%emt 0:01:42]} Bxe4 {[%emt 0:03:49]} 21. Nd4 $36 {[%emt 0:03:00][%mdl 2048] White has good play.} Rec8 {[%emt 0:04:21]} (21... d5 $1 $11) 22. Qg3 {[%emt 0:04:40]} d5 {[%emt 0:00:15]} 23. Rec1 {[%emt 0:02:27]} Rxc1+ {[%emt 0:25:17]} 24. Rxc1 {[%emt 0:00:04] Hoping for Rc7.} Qa7 {[%emt 0:00:03]} 25. Qe3 {[%emt 0:16:04]} Bd3 {[%emt 0:04:43]} 26. Ba4 {[%emt 0:01:34]} Qb6 {[%emt 0:04:23] [#]} 27. N2f3 {[%emt 0:00:40]} (27. Nc6 $1 $16 {[%cal Rc6e7]} Qxe3 28. fxe3) 27... Be4 {[%emt 0:07:45]} (27... Re8 $5 {[%cal Re8e3]} 28. Ne5 Qd6 $11) 28. Nd2 {[%emt 0:03:00]} Bd3 {[%emt 0:00:36] White must now prevent ...Re8.} 29. N2f3 {[%emt 0:04:33]} Be4 {[%emt 0:00:18]} 30. Ne5 {[%emt 0:00:21]} Re8 {[%emt 0:00:23]} 31. f4 {[%emt 0:01:32]} (31. Ndc6 $5 {[%cal Re3b6]} d4 32. Qd2 Nxc6 33. Nxc6 $11) 31... Nh5 {[%emt 0:02:01][%cal Oh5f4] aiming for ...Nxf4!} (31... g5 $5 32. fxg5 Rxe5 33. gxf6 Rg5 $11) 32. Kh2 {[%emt 0:01:19]} g5 {[%emt 0:01:02]} 33. g3 {[%emt 0:01:03]} Kh7 {[%emt 0:03:07]} 34. Bd1 {[%emt 0:02:21]} (34. Nxf7 $2 gxf4 35. gxf4 Qg6 $19) 34... gxf4 {[%emt 0:01:02]} 35. gxf4 {[%emt 0:00:04] Chess con chili.} Rg8 {[%emt 0:00:15][%cal Ob6d4] ( -> ...Qxd4!)} 36. Bg4 {[%emt 0:01:06]} ({But not} 36. Bxh5 $2 Rg2+ 37. Kh1 Re2+ 38. Qxe4+ Rxe4 $19) 36... Nf6 {[%emt 0:01:59]} (36... Nxf4 37. Qxf4 Qd6 38. Bf5+ Bxf5 39. Qxf5+ Rg6 40. Qxf7+ Rg7 41. Qf5+ Rg6 42. b6) 37. Rg1 {[%emt 0:00:41] White is more active.} Nxg4+ {[%emt 0:00:47]} 38. Rxg4 {[%emt 0:00:40]} Rxg4 {[%emt 0:01:16]} 39. hxg4 {[%emt 0:00:56]} f6 $2 {[%emt 0:00:54] A mistake that costs the game.} (39... Nc2 $16 {keeps fighting.} 40. Nxc2 Qxb5) 40. Nd7 $18 {[%emt 0:01:09]} Qd6 {[%emt 0:00:41]} 41. Ne6 $1 {[%emt 0:31:15][%cal Oe3a7] Threatening mate with Qa7! Pair of Knights!} Kh8 $2 {[%emt 0:06:50]} (41... Kg8) 42. Ndc5 {[%emt 0:00:00] White is clearly winning.} Nd3 {[%emt 0:22:11]} 43. Qd4 {[%emt 0:00:00]} Qe7 {[%emt 0:00:04]} 44. b6 {[%emt 0:00:00] White wants to mate with b7.} ({Weaker is} 44. Nxd3 Bxd3 45. Qxd3 (45. Qxd5 Bxb5 46. Kh3 Be8 $11) 45... Qxe6 $14) 44... Nxc5 {[%emt 0:00:10]} 45. Qxc5 {[%emt 0:00:00] Weighted Error Value: White=0.36/Black=0.19 (very precise)} 1-0

[Event "FRA-ch Teams Top 16-B 2022"]
[Site "Chartres"]
[Date "2022.06.15"]
[Round "7.7"]
[White "Sokolov, Andrei"]
[Black "Degraeve, Jean-Marc"]
[Result "1/2-1/2"]
[ECO "B06"]
[WhiteElo "2516"]
[BlackElo "2520"]
[Annotator "TA"]
[PlyCount "33"]
[EventDate "2022.06.09"]
[EventType "team-tourn"]
[EventCountry "FRA"]
[SourceTitle "playchess.com"]
[Source "ChessBase"]
[SourceQuality "1"]
[TimeControl "40/5400+30:1800+30"]

{[%evp 12,33,6,20,16,22,22,0,0,0,21,10,0,12,21,11,6,12,9,13,14,9,21,14]} 1. e4 {[%emt 1:31:00]} c5 {[%emt 0:00:16]} 2. Nf3 {[%emt 0:00:00]} g6 {[%emt 0:00:18]} 3. c3 {[%emt 0:00:00]} d5 {[%emt 0:01:02]} 4. exd5 {[%emt 0:00:00]} Qxd5 {[%emt 0:00:09]} 5. d4 {[%emt 0:00:00]} Bg7 {[%emt 0:00:09]} 6. Be3 {[%emt 0:00:00]} cxd4 {[%emt 0:00:48]} 7. cxd4 {[%emt 0:00:00] The position is equal.} Qd8 {[%emt 0:00:18] B06: Modern Defence.} 8. Nc3 {[%emt 0:00:00]} Nh6 {[%emt 0:00:16]} 9. d5 {[%emt 0:00:00] [#]} O-O $146 {[%emt 0:13:45]} ({Predecessor:} 9... Nf5 10. Bf4 O-O 11. Bc4 a6 12. O-O b5 13. Bb3 Nd7 14. Re1 Bb7 15. Qe2 Nf6 {1-0 (72) Padeiro,J (2208)-Guerra Costa,J (2209) Vila Nova de Gaia 2004}) 10. Be2 {[%emt 0:00:00]} Bg4 {[%emt 0:09:03]} 11. Nd4 {[%emt 0:00:00]} Bxe2 {[%emt 0:06:53]} 12. Qxe2 {[%emt 0:00:00]} Qd7 {[%emt 0:00:09] Prevents g4.} 13. h3 {[%emt 0:00:00]} Nf5 {[%emt 0:00:46]} 14. Nxf5 {[%emt 0:00:00]} Qxf5 {[%emt 0:00:51]} 15. Rd1 {[%emt 0:00:00]} Nd7 {[%emt 0:06:10]} 16. O-O {[%emt 0:00:00]} a6 {[%emt 0:00:17]} 17. Rfe1 {[%emt 0:00:00] An uneventful encounter.  Weighted Error Value: White=0.03 (flawless) /Black=0.03 (flawless)} 1/2-1/2

[Event "FRA-ch Teams Top 16-B 2022"]
[Site "Chartres"]
[Date "2022.06.15"]
[Round "7.8"]
[White "Guichard, Pauline"]
[Black "Navrotescu, Andreea"]
[Result "0-1"]
[ECO "D45"]
[WhiteElo "2377"]
[BlackElo "2318"]
[Annotator "TA"]
[PlyCount "80"]
[EventDate "2022.06.09"]
[EventType "team-tourn"]
[EventCountry "FRA"]
[SourceTitle "playchess.com"]
[Source "ChessBase"]
[SourceQuality "1"]
[TimeControl "40/5400+30:1800+30"]

{[%evp 14,80,21,0,0,0,0,-5,0,0,0,0,5,9,14,5,17,22,22,16,34,30,47,22,27,15,34,42,25,24,24,26,83,111,83,109,185,177,197,183,163,154,150,143,151,-125,-107,-123,-111,-201,-181,-167,-164,-158,-158,-111,-93,-164,-193,-161,0,-669,-656,-1626,-1481,-2281,-2115,-1487,-1393]} 1. d4 {[%emt 0:00:02]} Nf6 {[%emt 0:00:05]} 2. c4 {[%emt 0:00:04]} e6 {[%emt 0:00:04]} 3. Nf3 {[%emt 0:00:06]} d5 {[%emt 0:00:27]} 4. Nc3 {[%emt 0:00:14]} c6 {[%emt 0:00:31]} 5. e3 {[%emt 0:00:15]} Nbd7 {[%emt 0:00:18]} 6. Be2 {[%emt 0:00:11][%cal Bf1e2,Be2d3,Bd3f5][%mdl 32]} Bd6 {[%emt 0:01:39]} 7. O-O {[%emt 0:00:26]} O-O {[%emt 0:01:09]} 8. b3 {[%emt 0:00:20]} b6 {[%emt 0:00:30] D45: Semi-Slav: 5 e3.} 9. Bb2 {[%emt 0:00:13]} Bb7 {[%emt 0:00:17]} 10. Bd3 {[%emt 0:00:21]} Qe7 {[%emt 0:02:32] The position is equal.} 11. Re1 {[%emt 0:00:41]} c5 {[%emt 0:02:03]} 12. cxd5 {[%emt 0:00:39]} exd5 {[%emt 0:00:13]} 13. Nb5 {[%emt 0:00:09]} Bb8 {[%emt 0:01:28]} 14. Bf5 {[%emt 0:00:22] [#]} a6 $146 {[%emt 0:03:04]} ({Predecessor:} 14... g6 15. Bh3 Ne4 16. dxc5 bxc5 17. Nc3 Ndf6 18. Qc2 Bd6 19. Rac1 Rad8 20. g3 Rfe8 {1-0 (99) Gumularz,S (2515)-Mendonca,L (2557) Paleochora 2021}) 15. Nc3 {[%emt 0:00:44]} Re8 {[%emt 0:09:36]} 16. Rc1 {[%emt 0:07:00]} Qd6 {[%emt 0:05:33]} 17. g3 {[%emt 0:23:36]} Bc7 {[%emt 0:01:53]} 18. Re2 {[%emt 0:02:33]} Rad8 {[%emt 0:02:43]} 19. Ba3 {[%emt 0:03:50]} Qc6 {[%emt 0:04:07]} 20. Bh3 {[%emt 0:03:01]} c4 {[%emt 0:03:27]} 21. Bg2 {[%emt 0:17:47] bxc4 is the strong threat.} b5 {[%emt 0:01:50]} 22. Nd2 {[%emt 0:09:01]} Qb6 {[%emt 0:09:09]} (22... Nb6 $1 $11 {keeps the balance.}) 23. bxc4 $1 $16 {[%emt 0:02:59]} dxc4 {[%emt 0:01:12]} 24. Nxc4 {[%emt 0:00:36]} bxc4 {[%emt 0:00:36]} (24... Qa7 $16) 25. Rb2 $18 {[%emt 0:03:00][%mdl 64] Skewer, Deflection} Qa5 {[%emt 0:02:00] White must now prevent ...Bxg2.} 26. Rxb7 {[%emt 0:02:06] aiming for Bb4.} Bxg3 {[%emt 0:04:26]} 27. Bb4 {[%emt 0:05:41] A strong pair of Bishops.} (27. fxg3 $6 Qxa3 28. Qd2 Qa5 $14) 27... Bxf2+ {[%emt 0:00:12]} 28. Kxf2 {[%emt 0:00:04]} Qg5 {[%emt 0:00:11]} 29. Kg1 $2 {[%emt 0:06:39]} (29. Qf3 $2 Rxe3 $3 {[%mdl 512]} 30. Qd1 Rd3 $19) (29. Qd2 $1 $16 {is necessary to keep the advantage.}) 29... Qxe3+ $17 {[%emt 0:05:07]} 30. Kh1 {[%emt 0:00:05] [#] Hoping for Qg1.} Ng4 $1 {[%emt 0:00:06]} 31. Rc2 {[%emt 0:02:59]} ({Avoid the trap} 31. Qxg4 $2 Qxc1+ 32. Nd1 Nf6 $19) ({But not} 31. Qf1 $2 Nf2+ 32. Kg1 Nd3+ 33. Kh1 Nf2+ 34. Kg1 Nd3+ 35. Kh1 Nf2+ $19) (31. Nd5 $17 Qh6 32. Qg1 Nxh2 33. Qxh2 (33. Ne7+ $2 Rxe7 34. Qxh2 Qxc1+ $19) 33... Qxc1+ 34. Qg1) 31... Qe1+ {[%emt 0:03:27]} 32. Bf1 {[%emt 0:00:04] [#] Threatens to win with Qf3.} Nf2+ $1 {[%emt 0:00:45]} 33. Rxf2 {[%emt 0:00:05]} Qxf2 {[%emt 0:00:02]} 34. Nd5 {[%emt 0:00:18]} Ne5 $40 {[%emt 0:07:57][%mdl 128] ( -> ...Nf3). Black has strong attack.} 35. dxe5 {[%emt 0:07:16] [#]} (35. Ne7+ $17 {was worth a try.} Kh8 36. d5) 35... Rxd5 $1 $19 {[%emt 0:00:09][%mdl 512] The board is on fire.} 36. Qe2 {[%emt 0:00:03]} Qf5 {[%emt 0:02:07]} (36... Qxe2 $19 37. Bxe2 Rb5 38. Rxb5 axb5) 37. Bc3 $2 {[%emt 0:02:43][%mdl 8192]} (37. e6 $11 fxe6 38. Bc3 (38. Qg2 $2 Qf6 $19)) 37... Rd3 {[%emt 0:01:14][%cal Bd5d3,Bd3d2,Bd2d1][%mdl 32] Black is clearly winning.} 38. Ba1 {[%emt 0:00:20][%cal Oe5e6] [#]} Rd2 $3 {[%emt 0:02:54][%mdl 512]} 39. Qe1 {[%emt 0:01:10]} (39. e6 Rxe2) 39... Qf3+ {[%emt 0:00:33]} 40. Kg1 {[%emt 0:00:04]} Rd1 {[%emt 0:01:00] Weighted Error Value: White=0.71/Black=0.15 (very precise)} 0-1

[Event "FRA-ch Teams Top 16-B 2022"]
[Site "Chartres"]
[Date "2022.06.15"]
[Round "7.9"]
[White "Vernay, Clovis"]
[Black "Kulaots, Kaido"]
[Result "1/2-1/2"]
[ECO "D70"]
[WhiteElo "2523"]
[BlackElo "2537"]
[Annotator "TA"]
[PlyCount "105"]
[EventDate "2022.06.09"]
[EventType "team-tourn"]
[EventCountry "FRA"]
[SourceTitle "playchess.com"]
[Source "ChessBase"]
[SourceQuality "1"]
[TimeControl "40/5400+30:1800+30"]

{[%evp 16,105,40,26,47,47,42,52,43,43,30,0,0,0,0,0,0,0,0,0,0,0,46,31,49,16,17,18,18,14,29,17,28,20,25,16,85,83,86,80,95,103,91,72,87,52,114,101,88,54,104,65,64,29,24,0,65,65,65,8,65,2,2,0,62,62,65,64,63,61,69,57,88,88,473,464,460,418,400,32,51,8,36,41,35,36,39,0,8,0,39,0]} 1. d4 {[%emt 0:00:05]} Nf6 {[%emt 0:00:06]} 2. c4 {[%emt 0:00:08]} g6 {[%emt 0:00:13]} 3. f3 {[%emt 0:00:07]} d5 {[%emt 0:00:19]} 4. cxd5 {[%emt 0:00:05]} Nxd5 {[%emt 0:00:05]} 5. e4 {[%emt 0:00:04]} Nb6 {[%emt 0:00:09]} 6. Nc3 {[%emt 0:00:04]} Bg7 {[%emt 0:00:09]} 7. Be3 {[%emt 0:00:08]} O-O {[%emt 0:00:18]} 8. Qd2 {[%emt 0:00:05]} Nc6 {[%emt 0:01:05]} 9. O-O-O {[%emt 0:00:39]} Qd6 {[%emt 0:01:38] D70: Grünfeld: Unusual White 3rd moves (met by ...d5).} 10. Kb1 {[%emt 0:00:13]} Rd8 {[%emt 0:00:38][%cal Rg7d4]} 11. Nb5 {[%emt 0:00:28]} Qd7 {[%emt 0:00:19]} 12. d5 {[%emt 0:00:08]} a6 {[%emt 0:07:02]} 13. dxc6 {[%emt 0:00:50]} (13. Nc3 {is more complex.} Na5 14. Bd4 Nbc4 15. Bxc4 Nxc4 16. Qc1) 13... Qxd2 {[%emt 0:00:31]} 14. Rxd2 {[%emt 0:00:06]} Rxd2 {[%emt 0:00:10]} 15. Bxd2 {[%emt 0:00:03]} axb5 {[%emt 0:00:11]} 16. cxb7 {[%emt 0:00:06]} ({But not} 16. Bxb5 bxc6 17. Bxc6 Rb8 $15) 16... Bxb7 {[%emt 0:00:07]} 17. Bxb5 {[%emt 0:00:06]} f5 {[%emt 0:04:40]} 18. exf5 {[%emt 0:01:07] [#]} gxf5 $146 {[%emt 0:03:58]} (18... Bd5 $11 {was preferrable.}) ({Predecessor:} 18... Bd5 19. Ne2 {½-½ (19) Vidit,S (2625)-Fedoseev,V (2674) Moscow 2015}) 19. Ne2 $14 {[%emt 0:15:56]} Bd5 {[%emt 0:04:39]} 20. Nc3 {[%emt 0:56:06]} Bxc3 {[%emt 0:05:03]} 21. Bxc3 {[%emt 0:00:06]} Bxa2+ {[%emt 0:00:07]} 22. Kc2 {[%emt 0:00:04] Hoping for Bc6.} Bd5 {[%emt 0:00:11] Against Bc6} (22... Bc4 $5 {[%cal Rc4b5]} 23. Bc6 Rd8 $11) 23. Re1 {[%emt 0:00:48]} Kf7 {[%emt 0:01:00]} 24. Bd3 {[%emt 0:00:34] This bishop pair is nice.} e6 {[%emt 0:02:45]} 25. g4 {[%emt 0:08:54]} Na4 {[%emt 0:29:06]} (25... Rg8 $11) 26. gxf5 $16 {[%emt 0:01:23]} Nxc3 {[%emt 0:00:05]} 27. fxe6+ {[%emt 0:03:12]} ({Much worse is} 27. bxc3 $6 Ra2+ 28. Kc1 Rxh2 $11) 27... Bxe6 {[%emt 0:00:10] And now ...Nd5 would win.} 28. Kxc3 {[%emt 0:00:15][%mdl 4096] Endgame KRB-KRB} Kf6 {[%emt 0:01:09] Prevents Re5.} 29. Re4 {[%emt 0:01:43]} h6 {[%emt 0:00:22]} 30. b4 {[%emt 0:10:45]} Ra1 {[%emt 0:08:27]} (30... Ra3+ $14 31. Kd4 Bf5) 31. Kd4 {[%emt 0:00:16]} Rd1 {[%emt 0:00:45]} 32. Ke3 {[%emt 0:00:31]} Rh1 {[%emt 0:08:26]} ({Better is} 32... Bf5 $14 33. Be2 (33. Rd4 Bxd3 34. Rxd3 Rh1 $16) 33... Rb1) 33. h4 {[%emt 0:00:06]} Ra1 {[%emt 0:00:04]} 34. Rf4+ {[%emt 0:01:08]} Ke5 {[%emt 0:01:16]} 35. Re4+ {[%emt 0:00:11]} (35. Rf8 $5 {[%cal Rf3f4]} Re1+ 36. Kf2 $14) 35... Kf6 $1 {[%emt 0:00:14]} 36. Kd4 {[%emt 0:00:54]} Rd1 {[%emt 0:00:17]} 37. b5 {[%emt 0:00:50]} (37. Rf4+ $14 Ke7 38. b5) 37... Bd7 {[%emt 0:17:53]} (37... Bf5 $11 38. Re3 Be6) 38. Ke3 {[%emt 0:00:10]} ({White should try} 38. Rf4+ $14 Ke7 39. Kc3) 38... Re1+ $1 $11 {[%emt 0:04:09]} 39. Kd4 {[%emt 0:00:06]} ({White should play} 39. Kf4 $11 Rh1 40. Ke3) 39... Rd1 $14 {[%emt 0:00:06]} 40. Rf4+ {[%emt 0:01:09]} Ke7 {[%emt 0:00:38]} 41. Kc3 {[%emt 0:01:27]} Rc1+ {[%emt 0:03:17]} 42. Kb4 {[%emt 0:02:28]} Rh1 {[%emt 0:04:36]} 43. Bc4 {[%emt 0:04:19]} Rh2 {[%emt 0:00:15]} 44. Kc5 {[%emt 0:00:11] Rf7+ is the strong threat.} Rh1 $2 {[%emt 0:00:15][%mdl 8192]} (44... Be8 $16) 45. Rf7+ $18 {[%emt 0:12:24]} Ke8 {[%emt 0:00:50] [#]} 46. Rh7 $1 {[%emt 0:09:08] aiming for b6.} Rxh4 {[%emt 0:03:44] [#]} 47. Bd5 $2 {[%emt 0:00:03]} (47. Bf7+ $1 $18 Kd8 48. b6 cxb6+ 49. Kd6 Rd4+ 50. Bd5) 47... Rh1 {[%emt 0:11:17]} 48. Bc6 {[%emt 0:02:11]} Rc1+ {[%emt 0:00:11]} 49. Kd5 {[%emt 0:00:04]} Rd1+ $1 {[%emt 0:00:20]} 50. Ke5 {[%emt 0:00:11] White wants to mate with Rxd7.} Re1+ $1 {[%emt 0:02:52]} 51. Kd5 {[%emt 0:00:42]} (51. Be4 $5 {[%cal Rb5b6]}) 51... Rd1+ $1 {[%emt 0:00:13]} 52. Ke5 {[%emt 0:00:13] White threatens Rxd7 and mate.} Re1+ $1 {[%emt 0:00:05]} 53. Kd5 {[%emt 0:01:23] Weighted Error Value: White=0.29 (precise) /Black=0.30} (53. Be4 $5 {[%cal Rb5b6]}) 1/2-1/2